Cogmind - Beta 13 @@@ ROGUE MODE // 2024.04.19 @ 08:01:43 Player: Wyvric Result: Core destroyed Performance ------------- Evolutions (7) 3500 Regions Visited (18) 3600 Robots Destroyed (145) 725 Value Destroyed (6324) 6324 Prototype IDs (20) 400 Alien Tech Used (2) 400 Bonus (1588) 1588 TOTAL SCORE: 16537 Bonus ------- High Alert Combat Kills 301 Follower Combat Kills 487 Entered DSFs 500 Met Zhirov 300 Cogmind --------- Core Integrity 0/1300 Matter 160/300 Energy 350/350 System Corruption 21% Temperature Critical (942) Movement Immobile (Siege) Location -3/Armory Parts ------- > --- POWER (1) -------- Quantum Reactor > --- PROPULSION (4) --- Biometal Heavy Treads Biometal Heavy Treads > --- UTILITY (12) ----- Improved Thermal Generator High-capacity Storage Unit Enhanced Optical Array Advanced Terrain Scan Processor Advanced Cloaking Device Heavy Reflective Plating Makeshift Hacking Suite Advanced Hacking Suite System Shield Improved System Guard Improved System Guard > --- WEAPON (4) ------- Heavy Phase Cannon Heavy Phase Cannon Enhanced Nova Cannon Enhanced Nova Cannon > --- INVENTORY (20) --- Heavy Treads Heavy Treads Biometal Heavy Treads Biometal Heavy Treads Biometal Heavy Treads Biometal Leg Biometal Leg Biometal Leg Centrium Leg Centrium Leg Centrium Leg Centrium Leg Enhanced Quantum Rifle Matter Neutralizer Gamma Bomb Array Peak State ------------ > --- POWER ------------ Quantum Reactor > --- PROPULSION ------- Biometal Heavy Treads Biometal Heavy Treads > --- UTILITY ---------- Improved Thermal Generator High-capacity Storage Unit Enhanced Optical Array Advanced Terrain Scan Processor Advanced Cloaking Device Heavy Reflective Plating Makeshift Hacking Suite Advanced Hacking Suite System Shield Improved System Guard Improved System Guard > --- WEAPON ----------- Heavy Phase Cannon Heavy Phase Cannon Enhanced Nova Cannon Enhanced Nova Cannon > --- INVENTORY -------- Heavy Treads Heavy Treads Biometal Heavy Treads Biometal Heavy Treads Biometal Heavy Treads Biometal Leg Biometal Leg Biometal Leg Centrium Leg Centrium Leg Centrium Leg Centrium Leg Enhanced Quantum Rifle Matter Neutralizer Gamma Bomb Array [Rating: 152] Favorites ----------- Power Light Ion Engine Engine Light Ion Engine Power Core Fission Core Reactor Fusion Reactor Propulsion Armored Leg Treads Light Treads Leg Armored Leg Wheel Wheel Hover Unit Cooled Gravmag System Flight Unit Xenon Bombardment Thruster Utility Advanced Terrain Scan Processor Device Advanced Terrain Scanner Storage Large Storage Unit Processor Advanced Terrain Scan Processor Hackware Hacking Suite Protection Improved Light Armor Plating Weapon Power Sword Energy Gun Medium Laser Energy Cannon Light EM Pulse Cannon Ballistic Gun Flak Gun Ballistic Cannon Gauss Cannon Launcher Rocket Launcher Impact Weapon Power Maul Slashing Weapon Power Sword Piercing Weapon Heavy Pick Build | -11 -10 -10 -10 -9 -8 -7 -7 -6 -6 -6 -5 -4 -4 -4 -4 -3 -3 -3 ------- Run | Yrd Mat Min Exi Min Mat Fac DSF Fac Was Fac Fac Fac Upp Upp Zhi Pro Res Arm Slots Evolved 14 | . . . . . 4 2 . 2 . . 2 2 . . . . 2 . Power . | . . . . . . . . . . . . . . . . . . . Propulsion 2 | . . . . . 2 . . . . . . . . . . . . . Utility 10 | . . . . . 2 2 . 2 . . . 2 . . . . 2 . Weapon 2 | . . . . . . . . . . . 2 . . . . . . . Parts Attached 344 | 6 14 14 6 6 21 2 8 61 3 13 84 17 12 6 6 2 38 25 Power 29 | 1 3 2 . 1 1 . . 6 1 1 7 . 1 . 1 . 2 2 Engine 13 | 1 3 2 . 1 1 . . 3 . . 2 . . . . . . . Core 9 | . . . . . . . . 3 . 1 4 . 1 . . . . . Reactor 7 | . . . . . . . . . 1 . 1 . . . 1 . 2 2 Propulsion 102 | 2 2 8 5 5 7 . 4 15 . 3 21 4 1 . 3 1 14 7 Treads 16 | . . 4 2 2 2 . . . . . 2 . 1 . . . 1 2 Leg 51 | 2 . . . . . . . 11 . 3 19 3 . . . . 8 5 Wheel 17 | . 2 4 3 3 5 . . . . . . . . . . . . . Hover 12 | . . . . . . . . 2 . . . 1 . . 3 1 5 . Flight 6 | . . . . . . . 4 2 . . . . . . . . . . Utility 134 | 1 5 . 1 . 5 2 4 20 2 9 36 13 7 2 2 1 18 6 Device 45 | . 1 . . . 1 1 . 7 . 4 11 5 3 1 1 1 8 1 Storage 24 | 1 2 . 1 . 1 . . 8 . 1 4 1 1 . 1 . 2 1 Processor 26 | . . . . . 1 1 2 5 . 3 4 2 3 . . . 3 2 Hackware 11 | . 1 . . . . . 2 . . . 3 1 . . . . 4 . Protection 28 | . 1 . . . 2 . . . 2 1 14 4 . 1 . . 1 2 Artifact . | . . . . . . . . . . . . . . . . . . . Weapon 79 | 2 4 4 . . 8 . . 20 . . 20 . 3 4 . . 4 10 Energy Gun 10 | 2 1 1 . . 1 . . 1 . . 1 . . 2 . . . 1 Energy Cannon 21 | . 3 . . . . . . 5 . . . . 2 2 . . 3 6 Ballistic Gun 8 | . . 1 . . 3 . . 2 . . 2 . . . . . . . Ballistic Cannon 5 | . . . . . . . . 5 . . . . . . . . . . Launcher 13 | . . 2 . . 1 . . 2 . . 3 . 1 . . . 1 3 Special Weapon . | . . . . . . . . . . . . . . . . . . . Impact Weapon 8 | . . . . . 3 . . 3 . . 2 . . . . . . . Slashing Weapon 10 | . . . . . . . . . . . 10 . . . . . . . Piercing Weapon 4 | . . . . . . . . 2 . . 2 . . . . . . . Special Melee Weapon . | . . . . . . . . . . . . . . . . . . . Unidentified Prototypes 6 | . . . . . . . . . . . . . . . 4 . 2 . Parts Lost 85 | . 3 3 . 3 12 . 1 9 . 5 14 8 3 2 . 1 18 3 Power 13 | . 1 1 . 1 2 . . 2 . 1 3 . . . . . 1 1 Propulsion 23 | . . . . 1 4 . . 3 . 2 3 1 1 2 . . 6 . Utility 31 | . . . . . 2 . 1 3 . 2 5 6 1 . . 1 9 1 Weapon 18 | . 2 2 . 1 4 . . 1 . . 3 1 1 . . . 2 1 Highest Loss Streak 10 | . 1 2 . 1 10 . 1 6 . 5 3 5 3 1 . 1 6 3 To Critical Strikes 2 | . . . . . . . . 1 . 1 . . . . . . . . Average Slot Usage (%) 83 | . 96 99 89 72 84 21 41 87 100 98 98 75 53 49 26 48 68 90 Engine 4 | . 13 13 14 6 7 . . 3 5 . . . . . . . . . Core 1 | . . . . . . . . . . 1 4 3 4 2 . . . . Treads 1 | . . 10 . . 5 . . . . . . . 2 2 . . . 2 Leg 11 | . 15 . . . . . . 18 26 25 22 17 10 6 . . 12 13 Wheel 7 | . 12 17 28 27 28 . . . . . . . . . . . . . Hover 1 | . . . . . . . . . . . . . . . . 14 5 . Device 6 | . 2 . . . 7 7 7 12 18 10 8 3 8 10 5 6 7 7 Storage 8 | . 14 14 14 14 8 . . 8 6 7 5 4 4 2 4 5 6 7 Processor 12 | . . . . . 7 5 16 22 26 26 21 14 16 14 10 10 13 18 Hackware 5 | . 4 14 3 . . . 1 3 . . 4 8 5 5 5 5 11 14 Protection 1 | . 4 . . . 1 . . . 1 6 4 8 . . . . . 3 Energy Gun 1 | . 17 . . . 1 . . . . . . . . 2 . . . 1 Energy Cannon 2 | . 10 14 . . . . . 2 . . . . . 2 . . 2 13 Launcher 5 | . . 13 28 22 2 . . . . . . . . . . . 1 . Impact Weapon 1 | . . . . . 6 7 4 . . . 4 . . . . . . . Slashing Weapon 3 | . . . . . . . . . . . 10 11 . . . . . . Piercing Weapon 1 | . . . . . . . . 1 13 13 5 . . . . . . . Naked Turns 20 | . . . . . . . . . . . . 20 . . . . . . Heaviest Build 215 | 12 33 33 210 212 215 4 4 66 47 53 71 74 48 63 33 36 63 131 Greatest Support 150 | 20 26 40 20 20 42 3 18 76 76 80 84 64 48 32 33 33 72 150 Greatest Overweight (x) 10 | 3 1 1 10 10 10 1 1 2 . 1 1 1 1 1 6 1 1 1 Average Overweight (x) 1 | . . . 5 10 5 1 . . . . . . . . 2 . . . Largest Inventory Capacity 35 | 8 15 15 35 35 35 5 5 15 15 15 15 15 15 15 15 15 30 20 Average Capacity 17 | 7 11 15 29 35 34 5 5 14 15 15 15 12 13 9 14 15 15 19 Most Carried 25 | 8 15 15 18 22 25 5 5 15 15 15 15 14 15 15 12 9 15 20 Average Carried 13 | 5 9 14 16 18 21 3 4 13 15 14 14 11 12 7 8 6 13 18 Final Capacity 35 | 8 15 15 35 35 5 5 5 15 15 15 15 5 15 5 15 15 15 20 Final Carried 22 | 6 13 15 18 22 4 5 5 15 15 15 14 4 15 5 7 9 15 20 Class Distribution -------------------- 34% | Mutant 16% | Hauler-Mutant 15% | Gladiator 10% | Hacker-Gladiator 7% | Hacker-Mutant 5% | Scavenger-Gladiator 4% | Derelict-Mutant 3% | Hacker-Tank Dominant Class ---------------- Mutant | -10/Materials Mutant | -10/Mines Hauler-Mutant | -10/Exiles Hauler-Mutant | -9/Mines Hauler-Mutant | -8/Materials Mutant | -7/Factory Mutant | -7/DSF Mutant | -6/Factory Scavenger-Gladiator | -6/Waste Scavenger-Gladiator | -6/Factory Gladiator | -5/Factory Hacker-Gladiator | -4/Factory Derelict-Mutant | -4/Upper Caves Mutant | -4/Upper Caves Mutant | -4/Zhirov Mutant | -3/Proximity Caves Hacker-Mutant | -3/Research Hacker-Tank | -3/Armory Resources | -11 -10 -10 -10 -9 -8 -7 -7 -6 -6 -6 -5 -4 -4 -4 -4 -3 -3 -3 ----------- Run | Yrd Mat Min Exi Min Mat Fac DSF Fac Was Fac Fac Fac Upp Upp Zhi Pro Res Arm Matter Collected 4193 | 180 192 375 20 43 338 . 179 797 40 110 756 239 78 . . 128 454 264 Remotely . | . . . . . . . . . . . . . . . . . . . Salvage Created 6231 | . 367 162 . 122 488 . 180 775 . 188 2777 151 37 . . . 552 432 Parts 296 | . 25 5 . 14 24 . 4 31 . 12 113 7 . . . . 44 17 Haulers Intercepted 1 | . . . . . 1 . . . . . . . . . . . . . Recyclers Shooed 7 | . . . . . 1 . . 1 . . 1 . . . . . 4 . Parts Field Recycled . | . . . . . . . . . . . . . . . . . . . Retrieved Matter . | . . . . . . . . . . . . . . . . . . . Parts Self-Destructed 3 | . . . . . . . . . . . . . 2 1 . . . . Prevented . | . . . . . . . . . . . . . . . . . . . Kills | -11 -10 -10 -10 -9 -8 -7 -7 -6 -6 -6 -5 -4 -4 -4 -4 -3 -3 -3 ------- Run | Yrd Mat Min Exi Min Mat Fac DSF Fac Was Fac Fac Fac Upp Upp Zhi Pro Res Arm Combat Hostiles Destroyed 131 | . 10 11 . 12 15 . 3 14 . 3 39 5 1 . . . 12 6 Melee 42 | . . . . . 2 . 2 1 . 3 29 5 . . . . . . Guns 13 | . 4 1 . . 5 . . 3 . . . . . . . . . . Cannons 26 | . 4 1 . . . . . 6 . . . . . . . . 11 4 AOE 39 | . 2 9 . 12 5 . . 3 . . 7 . 1 . . . . . Classes Destroyed 16 | . 3 4 . 2 1 . 1 3 . . 1 . . . . . . 1 Worker 6 | . . . . 1 2 . . . . . 3 . . . . . . . Builder 3 | . . 1 . . 2 . . . . . . . . . . . . . Hauler 1 | . . . . . 1 . . . . . . . . . . . . . Recycler 7 | . . 1 . . . . . 2 . . 4 . . . . . . . Watcher 5 | . 1 . . . . . . 1 . . 2 . . . . . . 1 Swarmer 33 | . 3 . . 8 7 . . 4 . . 4 4 . . . . 3 . Grunt 41 | . 7 2 . 3 8 . . 4 . . 16 . 1 . . . . . Brawler 1 | . . . . 1 . . . . . . . . . . . . . . Duelist 2 | . . . . . . . . . . . 1 . . . . . . 1 Sentry 9 | . . . . . . . . 1 . 2 5 . . . . . . 1 Demolisher 1 | . . 1 . . . . . . . . . . . . . . . . Specialist 3 | . . . . . . . 3 . . . . . . . . . . . Hunter 9 | . . . . . . . . 3 . 1 4 . . . . . . 1 Programmer 23 | . . . . . . . . 2 . . 9 1 . . . . 9 2 Behemoth 1 | . . . . . . . . . . . . . . . . . . 1 Assembled 8 | . . 8 . . . . . . . . . . . . . . . . Best Kill Streak 11 | . 4 7 . 4 11 . 2 4 . 2 5 4 1 . . . 3 4 Combat Bots Only 7 | . 4 7 . 4 6 . 2 4 . 2 5 4 1 . . . 3 3 Max Kills in Single Turn 5 | . 2 4 . 4 5 . 1 3 . 1 4 1 1 . . . 1 2 Gunslinging . | . . . . . . . . . . . . . . . . . . . Exploded 4 | . 2 4 . 4 2 . . 3 . . 4 . 1 . . . . . Melee 1 | . . . . . 1 . 1 1 . 1 1 1 . . . . . . Uniques/NPCs Destroyed . | . . . . . . . . . . . . . . . . . . . Combat | -11 -10 -10 -10 -9 -8 -7 -7 -6 -6 -6 -5 -4 -4 -4 -4 -3 -3 -3 -------- Run | Yrd Mat Min Exi Min Mat Fac DSF Fac Was Fac Fac Fac Upp Upp Zhi Pro Res Arm Hostile Shots Fired 1520 | . 68 25 . 18 102 . 54 253 . 123 291 170 53 57 . 36 177 93 Missed 459 | . 18 9 . 4 28 . 20 79 . 44 86 65 20 16 . 16 42 12 Damage Taken 21064 | . 577 452 . 212 1326 . 483 2767 . 771 4410 2078 713 876 106 381 3399 2513 Core 4269 | . 108 52 . 8 405 . 339 520 . 70 362 462 136 131 103 89 945 539 Absorbed by Shields 152 | . . . . . . . . . . 152 . . . . . . . . Reduced by Siege Mode 100 | . . . . . . . . . . . . . . . . . . 100 Redirected to Shielding 257 | . . . . . 66 . . . . 85 . . . . . . 106 . Core Remaining (%) 45 | 100 . . . 32 26 . 51 . . 30 63 . . . . 18 . . Volleys Fired 220 | . 26 12 . 9 24 . . 53 . . 6 . 5 1 . . 63 21 Largest 4 | . 2 2 . 2 2 . . 2 . . 2 . 1 4 . . 2 4 Hottest 420 | . 112 112 . 63 40 . . 175 . . 66 . 49 356 . . 223 420 Shots Fired 343 | . 50 23 . 15 45 . . 70 . . 7 . 5 4 . . 70 54 Gun 93 | . 34 3 . . 42 . . 9 . . 2 . . 2 . . . 1 Cannon 209 | . 16 10 . . . . . 60 . . . . . 2 . . 70 51 Launcher 41 | . . 10 . 15 3 . . 1 . . 5 . 5 . . . . 2 Special . | . . . . . . . . . . . . . . . . . . . Kinetic 78 | . . 1 . . 42 . . 33 . . 2 . . . . . . . Thermal 174 | . 15 2 . . . . . 32 . . . . . 3 . . 70 52 Explosive 41 | . . 10 . 15 3 . . 1 . . 5 . 5 . . . . 2 Electromagnetic 50 | . 35 10 . . . . . 4 . . . . . 1 . . . . Robot Hit Streak 18 | . 12 18 . 4 5 . . 10 . . 4 . 5 4 . . 6 9 Robot Miss Streak 4 | . 2 2 . 1 4 . . 4 . . . . 4 . . . 4 2 Penetration Max . | . . . . . . . . . . . . . . . . . . . Secondary Targets 1 | . . . . . 1 . . . . . . . . . . . . . Max Gunslinging Chain 1 | . . . . . 1 . . . . . . . . . . . . . Shots Hit Robots 378 | . 32 17 . 8 33 . 6 45 . 11 136 14 1 4 . . 38 33 Core Hits 238 | . 14 21 . 18 33 . 2 33 . 6 64 7 5 . 5 . 14 16 Critical Kills 4 | . . . . . . . 1 . . . 1 . . . . . 1 1 Critical Parts Destroyed 6 | . . . . . 4 . 1 . . . 1 . . . . . . . Critical Strikes 34 | . 2 1 . . 4 . 3 . . 1 20 1 . . . . 1 1 Burn 2 | . 1 1 . . . . . . . . . . . . . . . . Meltdown 2 | . . . . . . . . . . . . . . . . . 1 1 Corrupt 1 | . 1 . . . . . . . . . . . . . . . . . Smash 9 | . . . . . 4 . 3 . . . 2 . . . . . . . Sever 14 | . . . . . . . . . . . 13 1 . . . . . . Impale 6 | . . . . . . . . . . 1 5 . . . . . . . Melee Attacks 286 | . . . . . 13 . 6 6 . 17 219 25 . . . . . . Impact 51 | . . . . . 13 . 6 4 . . 28 . . . . . . . Slashing 138 | . . . . . . . . . . . 113 25 . . . . . . Piercing 97 | . . . . . . . . 2 . 17 78 . . . . . . . Sneak Attacks 9 | . . . . . . . . 1 . . 8 . . . . . . . Combat Hostiles 1 | . . . . . . . . 1 . . . . . . . . . . Follow-up Attacks 44 | . . . . . . . . . . . 39 5 . . . . . . Damage Inflicted 18131 | . 619 799 . 775 1345 . 241 1588 . 405 7099 646 666 122 19 1 2236 1570 Guns 851 | . 314 37 . . 220 . . 171 . . 34 . . 44 . . . 31 Cannons 5032 | . 237 217 . . . . . 1067 . . . . . 74 . . 2107 1330 Explosions 4123 | . 68 530 . 775 777 . . 214 . . 884 . 666 . . . . 209 Melee 7873 | . . . . . 348 . 241 56 . 405 6177 646 . . . . . . Ramming 252 | . . 15 . . . . . 80 . . 4 . . 4 19 1 129 . Kinetic 704 | . . 13 . . 220 . . 437 . . 34 . . . . . . . Thermal 4731 | . 182 134 . . . . . 711 . . 138 . . 98 . . 2107 1361 Explosive 3783 | . . 420 . 775 777 . . 190 . . 746 . 666 . . . . 209 Electromagnetic 788 | . 437 217 . . . . . 114 . . . . . 20 . . . . Impact 1456 | . . . . . 348 . 241 . . . 867 . . . . . . . Slashing 4221 | . . . . . . . . . . . 3575 646 . . . . . . Piercing 2196 | . . . . . . . . 56 . 405 1735 . . . . . . . Highest Corruption 33 | . . . . . . . . 1 1 1 4 17 17 17 20 20 29 33 Average Corruption 12 | . . . . . . . . 1 1 1 2 8 17 17 18 20 15 27 Corruption Purged 7 | . . . . . . . . . . . 5 2 . . . . . . Corruption Blocked 2 | . . . . . . . . . . . 2 . . . . . . . Effects 147 | . . . . . . . . 5 . . 7 11 30 7 15 20 27 25 Message Errors 27 | . . . . . . . . . . . 2 . 6 1 7 3 4 4 Matter Fused 28 | . . . . . . . . . . . 2 3 4 1 3 5 6 4 Heat Flow Errors 16 | . . . . . . . . . . . . . 8 . 1 4 2 1 Energy Discharges 23 | . . . . . . . . 1 . . 3 2 4 2 1 1 5 4 Parts Rejected 3 | . . . . . . . . . . . . . . . . 1 2 . Parts Fused 4 | . . . . . . . . 1 . . . . 2 . . . 1 . Data Loss (minor) 18 | . . . . . . . . . . . . 1 3 1 2 4 4 3 Data Loss (major) 6 | . . . . . . . . 1 . . . . 2 . . . . 3 Misfires 4 | . . . . . . . . 2 . . . . . . . . 1 1 Alerts 3 | . . . . . . . . . . . . 1 . 1 1 . . . Misdirections 10 | . . . . . . . . . . . . 4 1 1 . 2 1 1 Weapon Failures 5 | . . . . . . . . . . . . . . . . . 1 4 Overload Shots . | . . . . . . . . . . . . . . . . . . . Overflow Damage 1095 | . 11 13 . 5 188 . 41 26 . . 569 23 41 . . . 152 26 Projectiles 183 | . . . . . . . . 20 . . . . . . . . 152 11 Explosions 130 | . 11 13 . 5 20 . . . . . 25 . 41 . . . . 15 Melee 782 | . . . . . 168 . 41 6 . . 544 23 . . . . . . Knockbacks 10 | . . . . . 1 . 2 3 . . 3 . . . 1 . . . Impact 8 | . . . . . 1 . 2 1 . . 3 . . . 1 . . . Kinetic 2 | . . . . . . . . 2 . . . . . . . . . . Secondary . | . . . . . . . . . . . . . . . . . . . Self-Inflicted Damage 857 | . 39 109 . 70 45 . . 307 . . 169 . 60 2 3 . 53 . Shots 20 | . 1 3 . 3 2 . . 5 . . 4 . 2 . . . . . Rammed 37 | . . 5 . . . . . . . . . . . 1 24 1 6 . Targets Rammed 51 | . . 6 . . . . . 9 . . 1 . . 1 24 1 9 . Kicked 13 | . . . . . . . . 9 . . 1 . . . . . 3 . Crushed 1 | . . 1 . . . . . . . . . . . . . . . . Highest Temperature 1278 | . 247 153 . 7 27 . . 310 . . 16 . 259 288 64 229 252 1278 Average Temperature 120 | . 94 55 . 3 7 . . 62 . . 7 . 91 147 42 99 102 401 Received Heat Transfer 3297 | . 261 58 . 48 432 . 12 708 . 76 966 172 129 185 . 73 105 72 Effects 17 | . . . . . . . . . . . . . 2 . . . 1 14 Shutdowns 4 | . . . . . . . . . . . . . . . . . . 4 Energy Bleed 2 | . . . . . . . . . . . . . . . . . 1 1 Interference 7 | . . . . . . . . . . . . . 2 . . . . 5 Matter Decay 1 | . . . . . . . . . . . . . . . . . . 1 Short Circuit 1 | . . . . . . . . . . . . . . . . . . 1 Damage (core) 2 | . . . . . . . . . . . . . . . . . . 2 Siege Activations 2 | . . . . . . . . . . . . . . . . . . 2 Total Turns 38 | . . . . . . . . . . . . . . . . . . 38 Longest Duration 26 | . . . . . . . . . . . . . . . . . . 26 Robots Corrupted 1 | . . . . . . . . 1 . . . . . . . . . . Combat Hostiles 1 | . . . . . . . . 1 . . . . . . . . . . Parts Fried 15 | . 2 1 . . 4 . 2 . . . 6 . . . . . . . Impact Corruptions 14 | . . . . . 5 . 1 1 . . 7 . . . . . . . Robots Melted 3 | . . . . . . . . . . . . . . . . . 1 2 Combat Hostiles 3 | . . . . . . . . . . . . . . . . . 1 2 Parts Melted 11 | . 3 . . . . . . 2 . . . . . . . . 1 5 Heat Transferred 3796 | . 507 198 . . . . . 1087 . . 100 . . 111 . . 592 1201 Parts Sabotaged . | . . . . . . . . . . . . . . . . . . . Parts Stolen . | . . . . . . . . . . . . . . . . . . . Parts Stripped . | . . . . . . . . . . . . . . . . . . . Power Chain Reactions 2 | . 1 1 . . . . . . . . . . . . . . . . Alert | -11 -10 -10 -10 -9 -8 -7 -7 -6 -6 -6 -5 -4 -4 -4 -4 -3 -3 -3 ------- Run | Yrd Mat Min Exi Min Mat Fac DSF Fac Was Fac Fac Fac Upp Upp Zhi Pro Res Arm Peak Influence 853 | . 211 128 . 411 327 112 156 389 97 142 853 557 . . . . 329 561 Initial 424 | . . 37 . . 81 112 81 81 97 67 69 424 . . . . 20 92 Average 186 | . 58 69 . 227 157 112 121 123 97 99 240 420 . . . . 174 261 Maximum Alert Level 3 | . 1 . . 2 1 . . 1 . . 3 2 . . . . 1 2 Low Security (%) 64 | 100 93 100 . 19 80 100 100 73 100 100 56 . . . . . 63 55 Level 1 25 | . 6 . . 66 19 . . 26 . . 31 25 . . . . 36 15 Level 2 8 | . . . . 13 . . . . . . 5 74 . . . . . 28 Level 3 2 | . . . . . . . . . . . 7 . . . . . . . Level 4 . | . . . . . . . . . . . . . . . . . . . Level 5 . | . . . . . . . . . . . . . . . . . . . High Security . | . . . . . . . . . . . . . . . . . . . Max Security . | . . . . . . . . . . . . . . . . . . . Squads Dispatched 32 | . 5 . . . 3 . 1 4 . . 9 2 . . . . 6 2 Investigation 5 | . 3 . . . . . . 1 . . . . . . . . . 1 Extermination 11 | . . . . . . . . 1 . . 6 . . . . . 3 1 Reinforcement 14 | . 2 . . . 2 . 1 2 . . 3 1 . . . . 3 . Assault 1 | . . . . . . . . . . . . 1 . . . . . . Garrison 1 | . . . . . 1 . . . . . . . . . . . . . Intercept . | . . . . . . . . . . . . . . . . . . . Searches Triggered . | . . . . . . . . . . . . . . . . . . . Construction Impeded 1 | . . . . . 1 . . . . . . . . . . . . . Haulers Reinforced . | . . . . . . . . . . . . . . . . . . . Active Scanning Responses . | . . . . . . . . . . . . . . . . . . . Cargo Convoy Interrupts 1 | . . . . . . . . . . . 1 . . . . . . . Stealth | -11 -10 -10 -10 -9 -8 -7 -7 -6 -6 -6 -5 -4 -4 -4 -4 -3 -3 -3 --------- Run | Yrd Mat Min Exi Min Mat Fac DSF Fac Was Fac Fac Fac Upp Upp Zhi Pro Res Arm Distress Signals 10 | . . . . . 1 . . 3 . . 1 1 . . . . 3 1 Communications Jammed . | . . . . . . . . . . . . . . . . . . . Distress Signals . | . . . . . . . . . . . . . . . . . . . Times Spotted 280 | . 18 20 . 10 25 . 4 26 . 4 62 26 10 15 . 8 35 17 Peak Tracking Total 14 | . 5 11 . 4 9 . 2 6 . 3 6 14 8 11 . 6 6 6 Tactical Retreats 41 | . 1 3 . . 2 . 1 4 . . 11 2 4 3 . 3 7 . Traps | -11 -10 -10 -10 -9 -8 -7 -7 -6 -6 -6 -5 -4 -4 -4 -4 -3 -3 -3 ------- Run | Yrd Mat Min Exi Min Mat Fac DSF Fac Was Fac Fac Fac Upp Upp Zhi Pro Res Arm Traps Triggered 8 | . 3 . . . . . 1 1 . . 2 1 . . . . . . Indirectly . | . . . . . . . . . . . . . . . . . . . Trap Hack Attempts . | . . . . . . . . . . . . . . . . . . . Triggered . | . . . . . . . . . . . . . . . . . . . Disarmed . | . . . . . . . . . . . . . . . . . . . Reprogrammed 2 | . . . . . . . . . . . . . . . . . . 2 Reused 1 | . . . . . . . . . . . . . . . . . . 1 Traps Extracted . | . . . . . . . . . . . . . . . . . . . Installed . | . . . . . . . . . . . . . . . . . . . Triggered 4 | . . . . . . . . . . . 2 . 1 . . . . 1 Machines | -11 -10 -10 -10 -9 -8 -7 -7 -6 -6 -6 -5 -4 -4 -4 -4 -3 -3 -3 ---------- Run | Yrd Mat Min Exi Min Mat Fac DSF Fac Was Fac Fac Fac Upp Upp Zhi Pro Res Arm Machines Disabled 23 | . . . . 4 . . . 11 . . 4 . . . . . 3 1 Max in Single Turn 4 | . . . . 2 . . . 4 . . 4 . . . . . 1 1 Machines Repaired . | . . . . . . . . . . . . . . . . . . . Machines Dismantled . | . . . . . . . . . . . . . . . . . . . Machines Sabotaged . | . . . . . . . . . . . . . . . . . . . Overloaded Fab Kills . | . . . . . . . . . . . . . . . . . . . Hacking | -11 -10 -10 -10 -9 -8 -7 -7 -6 -6 -6 -5 -4 -4 -4 -4 -3 -3 -3 --------- Run | Yrd Mat Min Exi Min Mat Fac DSF Fac Was Fac Fac Fac Upp Upp Zhi Pro Res Arm Machines Accessed 55 | . 4 . 4 . 3 1 . 11 . 2 12 2 1 1 9 . 4 1 Terminals 30 | . 4 . . . 3 1 . 8 . 2 7 1 . . . . 3 1 Fabricators 5 | . . . . . . . . 3 . . 2 . . . . . . . Repair Stations 2 | . . . . . . . . . . . 1 1 . . . . . . Recycling Units 1 | . . . . . . . . . . . 1 . . . . . . . Scanalyzers 2 | . . . . . . . . . . . 1 . . . . . 1 . Garrison Access . | . . . . . . . . . . . . . . . . . . . Total Hacks 197 | . 19 . 49 . 10 1 . 24 . 3 24 3 1 1 48 . 10 4 Successful 141 | . 12 . 49 . 5 1 . 10 . . 8 2 1 1 48 . 2 2 Failed 56 | . 7 . . . 5 . . 14 . 3 16 1 . . . . 8 2 Catastrophic 14 | . . . . . . . . 3 . . 5 1 . . . . 4 1 Database Lockouts . | . . . . . . . . . . . . . . . . . . . Manual 40 | . 16 . . . 4 . . 12 . . 7 . . . . . 1 . Terminals 80 | . 19 . . . 10 1 . 19 . 3 15 1 . . . . 8 4 Fabricators 8 | . . . . . . . . 5 . . 3 . . . . . . . Repair Stations 4 | . . . . . . . . . . . 2 2 . . . . . . Recycling Units 2 | . . . . . . . . . . . 2 . . . . . . . Scanalyzers 4 | . . . . . . . . . . . 2 . . . . . 2 . Garrison Access . | . . . . . . . . . . . . . . . . . . . Terminal Hacks 126 | . 9 . 49 . 4 1 . 6 . . 3 1 1 1 48 . 1 2 Record 85 | . . . 49 . . . . . . . . . . . 36 . . . Part Schematic 6 | . 2 . . . . . . . . . . . . . 4 . . . Robot Analysis 4 | . . . . . . . . . . . . . . . 4 . . . Prototype ID Bank 6 | . 1 . . . 1 . . . . . . . . . 4 . . . Open Door 2 | . . . . . . . . . . . . . 1 1 . . . . Open DSF 4 | . . . . . . 1 . 1 . . . 1 . . . . 1 . Level Access Points 2 | . . . . . . . . 1 . . 1 . . . . . . . Branch Access Points 2 | . 1 . . . . . . . . . 1 . . . . . . . Terminal Index 3 | . 1 . . . 1 . . 1 . . . . . . . . . . Alert Level 4 | . 2 . . . 1 . . 1 . . . . . . . . . . Unreport Threat 2 | . . . . . . . . 1 . . 1 . . . . . . . Reprogram Traps 1 | . . . . . . . . . . . . . . . . . . 1 Recall Investigation 1 | . 1 . . . . . . . . . . . . . . . . . Zone Layout 4 | . 1 . . . 1 . . 1 . . . . . . . . . 1 Fabricator Hacks 5 | . . . . . . . . 3 . . 2 . . . . . . . Load Schematic 1 | . . . . . . . . 1 . . . . . . . . . . Build 4 | . . . . . . . . 2 . . 2 . . . . . . . Repair Station Hacks 2 | . . . . . . . . . . . 1 1 . . . . . . Scan Component 2 | . . . . . . . . . . . 1 1 . . . . . . Recycling Unit Hacks 1 | . . . . . . . . . . . 1 . . . . . . . Report Inventory 1 | . . . . . . . . . . . 1 . . . . . . . Scanalyzer 2 | . . . . . . . . . . . 1 . . . . . 1 . Insert Component 2 | . . . . . . . . . . . 1 . . . . . 1 . Garrison Access Hacks . | . . . . . . . . . . . . . . . . . . . Unauthorized Hacks 5 | . 3 . . . 1 . . 1 . . . . . . . . . . Terminals 5 | . 3 . . . 1 . . 1 . . . . . . . . . . Assimilate 1 | . 1 . . . . . . . . . . . . . . . . . Botnet 4 | . 2 . . . 1 . . 1 . . . . . . . . . . Fabricators . | . . . . . . . . . . . . . . . . . . . Repair Stations . | . . . . . . . . . . . . . . . . . . . Recycling Units . | . . . . . . . . . . . . . . . . . . . Scanalyzers . | . . . . . . . . . . . . . . . . . . . Garrison Access . | . . . . . . . . . . . . . . . . . . . Data Cores Recovered . | . . . . . . . . . . . . . . . . . . . Used . | . . . . . . . . . . . . . . . . . . . Hacking Detections 34 | . 4 . . . 3 . . 10 . 2 10 1 . . . . 3 1 Full Trace Events 2 | . . . . . . . . 1 . . . . . . . . . 1 Feedback Events . | . . . . . . . . . . . . . . . . . . . Feedback Blocked . | . . . . . . . . . . . . . . . . . . . Robot Schematics Acquired . | . . . . . . . . . . . . . . . . . . . Robots Built 2 | . . . . . . . . . . . 2 . . . . . . . Authchips . | . . . . . . . . . . . . . . . . . . . Time 152 | . . . . . . . . . . . 152 . . . . . . . Total Robot Build Rating 10 | . . . . . . . . . . . 10 . . . . . . . Part Schematics Acquired 6 | . 2 . . . . . . . . . . . . . 4 . . . Parts Built 4 | . . . . . . . . 3 . . 1 . . . . . . . Authchips . | . . . . . . . . . . . . . . . . . . . Time 307 | . . . . . . . . 179 . . 128 . . . . . . . Total Part Build Rating 25 | . . . . . . . . 17 . . 8 . . . . . . . Parts Repaired . | . . . . . . . . . . . . . . . . . . . Time . | . . . . . . . . . . . . . . . . . . . Parts Recycled . | . . . . . . . . . . . . . . . . . . . Recycled Matter . | . . . . . . . . . . . . . . . . . . . Retrieved Matter . | . . . . . . . . . . . . . . . . . . . Retrieved Components . | . . . . . . . . . . . . . . . . . . . Parts Scanalyzed 2 | . . . . . . . . . . . 1 . . . . . 1 . Part Schematics Acquired . | . . . . . . . . . . . . . . . . . . . Parts Damaged . | . . . . . . . . . . . . . . . . . . . Bothacking | -11 -10 -10 -10 -9 -8 -7 -7 -6 -6 -6 -5 -4 -4 -4 -4 -3 -3 -3 ------------ Run | Yrd Mat Min Exi Min Mat Fac DSF Fac Was Fac Fac Fac Upp Upp Zhi Pro Res Arm Used RIF Installer . | . . . . . . . . . . . . . . . . . . . Robots Hacked . | . . . . . . . . . . . . . . . . . . . Non-combat . | . . . . . . . . . . . . . . . . . . . Combat . | . . . . . . . . . . . . . . . . . . . Robot Hacks Applied . | . . . . . . . . . . . . . . . . . . . Relay Couplers Released . | . . . . . . . . . . . . . . . . . . . Fabnet Peak Effective % . | . . . . . . . . . . . . . . . . . . . Robots Rewired 4 | . . . . . . . . . . . . . . . . . . 4 Allies Hacked . | . . . . . . . . . . . . . . . . . . . Hacks Repelled . | . . . . . . . . . . . . . . . . . . . Allies | -11 -10 -10 -10 -9 -8 -7 -7 -6 -6 -6 -5 -4 -4 -4 -4 -3 -3 -3 -------- Run | Yrd Mat Min Exi Min Mat Fac DSF Fac Was Fac Fac Fac Upp Upp Zhi Pro Res Arm Total Allies 9 | . . 3 . . . . . . . . 2 . . . . . . 4 Largest Group 4 | . . 3 . . . . . . . . 2 . . . . . . 4 Highest-Rated Group 224 | . . 40 . . . . . . . . 86 . . . . . . 224 Highest-Rated Ally 56 | . . 16 . . . . . . . . 43 . . . . . . 56 Total Orders 14 | . . . . . . . . 2 . . . 4 . 3 . 5 . . EXPLORE 11 | . . . . . . . . 2 . . . 3 . 3 . 3 . . RETURN 3 | . . . . . . . . . . . . 1 . . . 2 . . Ally Attacks 70 | . . 19 . . . . . . . . 11 . . . . . . 40 Total Damage 2098 | . . 219 . . . . . . . . 358 . . . . . . 1521 Kills 11 | . . 2 . . . . . . . . 1 . . . . . . 8 Allies Corrupted 3 | . . . . . . . . . . . . . . . . . . 3 Allies Melted . | . . . . . . . . . . . . . . . . . . . Intel | -11 -10 -10 -10 -9 -8 -7 -7 -6 -6 -6 -5 -4 -4 -4 -4 -3 -3 -3 ------- Run | Yrd Mat Min Exi Min Mat Fac DSF Fac Was Fac Fac Fac Upp Upp Zhi Pro Res Arm Robot Analysis Total 4 | . . . . . . . . . . . . . . . 4 . . . Derelict Logs Recovered 1 | . . . . . . . . . . . . . 1 . . . . . Drone Launches 11 | . . . . . . . . 2 . . . 3 . 3 . 3 . . Drone Recoveries 4 | . . . . . . . . . . . . 1 . 2 . 1 . . Exploration | -11 -10 -10 -10 -9 -8 -7 -7 -6 -6 -6 -5 -4 -4 -4 -4 -3 -3 -3 ------------- Run | Yrd Mat Min Exi Min Mat Fac DSF Fac Was Fac Fac Fac Upp Upp Zhi Pro Res Arm Turns Passed 11790 | 76 644 769 1349 520 510 38 77 1267 88 271 2767 538 624 141 376 444 878 413 Spaces Moved 8177 | 46 454 590 812 206 185 32 64 952 69 149 1728 431 555 161 177 619 775 172 Core 580 | 23 . . . . 6 32 59 . . . . 69 124 136 131 . . . Treads 171 | . . 130 . . . . . . . . 12 . . . . . . 29 Legs 3955 | 23 235 . . . . . . 550 69 149 1716 270 431 25 . . 356 131 Wheels 1876 | . 219 460 812 206 179 . . . . . . . . . . . . . Hover 1289 | . . . . . . . . 101 . . . 92 . . 46 619 419 12 Flight 306 | . . . . . . . 5 301 . . . . . . . . . . Fastest Speed 31 | 50 90 95 95 230 50 100 34 31 120 120 120 50 50 50 42 42 42 43 Average Speed 112 | 127 110 110 163 230 164 100 64 87 120 120 121 101 105 66 147 61 71 147 Slowest Speed 350 | 200 190 160 230 230 230 100 100 185 120 190 190 190 190 190 350 96 180 182 Overloaded Moves . | . . . . . . . . . . . . . . . . . . . Propulsion Burnouts . | . . . . . . . . . . . . . . . . . . . Robots Hopped . | . . . . . . . . . . . . . . . . . . . Cave-ins Triggered . | . . . . . . . . . . . . . . . . . . . Teleports 1 | . . . . . . . . . . . . . . . 1 . . . Exploration Rate (%) 44 | 5 62 91 93 50 20 2 55 29 70 5 50 17 71 38 62 77 29 15 Regions Visited 18 Branch Regions 8 Pre-discovered Areas 4 | . . . 1 . . . . . . . . . . . 3 . . . Known Exits Taken 4 | . 1 . . . . 1 . . . 1 1 . . . . . . . Unknown Exits Taken 11 | 1 . 1 1 1 1 . . . . . . 1 1 1 1 1 1 . Scrap Searched 7 | . . 1 . . . . . . . . . . 4 1 . 1 . . Spaces Dug 110 | . . . . 14 1 . . 12 . 5 60 4 . . . . 13 1 Terrain Destroyed 672 | . 3 113 . 94 36 . . 129 . 5 125 4 92 . . . 23 48 Melee 61 | . . . . . 1 . . 4 . 5 47 4 . . . . . . Projectile 56 | . . . . . . . . 18 . . . . . . . . 23 15 AOE 555 | . 3 113 . 94 35 . . 107 . . 78 . 92 . . . . 33 Terrain Rammed 3 | . . . . . . . . . . . . . . . 3 . . . Walls Destroyed . | . . . . . . . . . . . . . . . . . . . Machines Disabled . | . . . . . . . . . . . . . . . . . . . Actions | -11 -10 -10 -10 -9 -8 -7 -7 -6 -6 -6 -5 -4 -4 -4 -4 -3 -3 -3 --------- Run | Yrd Mat Min Exi Min Mat Fac DSF Fac Was Fac Fac Fac Upp Upp Zhi Pro Res Arm Total 10071 | 63 545 679 836 237 319 38 84 1319 74 216 2163 489 589 202 223 681 1019 295 Wait 573 | . 28 40 . 7 62 . 4 139 . 21 80 6 . 13 . 58 105 10 Move 8160 | 45 453 589 811 205 184 31 63 952 68 148 1727 430 554 160 176 618 774 172 Hop . | . . . . . . . . . . . . . . . . . . . Pick Up 271 | 12 17 11 15 8 11 4 1 48 . 9 53 9 15 2 9 1 22 24 Fast Attach 86 | . . 1 . . 1 . 8 14 3 6 20 4 5 . . 1 16 7 Attach 145 | 6 5 3 1 2 11 2 . 29 . 4 26 7 7 6 7 1 17 11 Detach 33 | . . . . . 2 . . 14 . . 4 . 2 3 . 1 2 5 Swap 115 | . 9 10 5 4 9 . . 18 . 3 38 6 . . . . 6 7 Drop 187 | . 7 7 4 2 2 1 2 37 3 9 62 3 1 16 1 . 5 25 Fire 220 | . 26 12 . 9 24 . . 53 . . 6 . 5 1 . . 63 21 Melee 207 | . . . . . 13 . 6 6 . 16 146 20 . . . . . . Ram 35 | . . . . . . . . . . . . . . 1 27 1 6 . Kick 13 | . . . . . . . . 9 . . 1 . . . . . 3 . Crush 6 | . . 6 . . . . . . . . . . . . . . . . Escape Stasis 4 | . . . . . . . . . . . . 4 . . . . . . Rewire 16 | . . . . . . . . . . . . . . . 3 . . 13 Trap . | . . . . . . . . . . . . . . . . . . . Miscellaneous . | . . . . . . . . . . . . . . . . . . . Route ------- -11/Scrapyard -10/Materials (discovered 3 exits: [*Mat x2] / *Min) -10/Mines (discovered 3 exits: [*Mat x2] / *Exi) -10/Exiles (discovered 2 exits: [*Min x2]) -9/Mines -8/Materials -7/Factory -7/DSF -6/Factory (discovered 5 exits: *Fac x4 / *Low) -6/Waste -6/Factory (discovered 2 exits: *Fac / *Low) -5/Factory (discovered 6 exits: *Fac x4 / Upp x2) -4/Factory -4/Upper Caves -4/Upper Caves -4/Zhirov -3/Proximity Caves -3/Research -3/Armory History --------- Turn | Location | Event 24 | -11/Scrapyard | Discovered new exit (range 16) 77 | -11/Scrapyard | Entered Materials 206 | -10/Materials | Discovered new exit (range 14) 316 | -10/Materials | Build established: Mutant 483 | -10/Materials | Discovered new exit (range 16) 609 | -10/Materials | Identified exit to Mines 609 | -10/Materials | Discovered new exit (range 15) 721 | -10/Materials | Entered Mines 728 | -10/Mines | Received a Rocket Launcher from a helpful Derelict 791 | -10/Mines | Core integrity fell below 50% 816 | -10/Mines | Discovered new exit (range 5) 871 | -10/Mines | Assisted by bots powering up and referring to "LRC-V3" 1099 | -10/Mines | Assembled infested the area 1104 | -10/Mines | Assisted by a Guerilla fighting off Assembled 1158 | -10/Mines | Lost 3 allies 1160 | -10/Mines | Destroyed 7 combat bots 1168 | -10/Mines | Discovered new exit (range 15) 1486 | -10/Mines | Deemed a non-threat by the Exiles lab entrance 1486 | -10/Mines | Discovered new exit (range 5) 1490 | -10/Mines | Entered Exiles 1505 | -10/Exiles | Discovered new exit (range 15) 1542 | -10/Exiles | Met 8R-AWN 1569 | -10/Exiles | Met EX-HEX 1633 | -10/Exiles | Met EX-DEC 1672 | -10/Exiles | Visited The Gauntlet 1817 | -10/Exiles | Learned location of Zion (-7) 1965 | -10/Exiles | Discovered new exit (range 14) 2164 | -10/Exiles | Build established: Hauler-Mutant 2189 | -10/Exiles | Met EX-BIN 2839 | -10/Exiles | Entered Mines 2919 | -9/Mines | Met a Derelict bent on vengeance 3272 | -9/Mines | Discovered new exit (range 7) 3359 | -9/Mines | Entered Materials 3359 | -8/Materials | Evolved 4 slots: Propulsion x2, Utility x2 3806 | -8/Materials | Discovered new exit (range 4) 3821 | -8/Materials | Garrison activated, responded to threat 3860 | -8/Materials | Core integrity fell below 50% 3869 | -8/Materials | Entered Factory 3869 | -7/Factory | Evolved 2 slots: Utility x2 3896 | -7/Factory | Lost 10 parts (1p4n2u3w) 3907 | -7/Factory | Identified exit to DSF 3907 | -7/Factory | Entered DSF 3931 | -7/DSF | Additional patrols routed to DSF 3962 | -7/DSF | Discovered new exit (range 11) 3984 | -7/DSF | Entered Factory 3984 | -6/Factory | Evolved 2 slots: Utility x2 4116 | -6/Factory | Discovered new exit (range 16) 4326 | -6/Factory | Lost 6 parts (1p3n1u1w) 4552 | -6/Factory | Build established: Mutant 4637 | -6/Factory | Core integrity fell below 50% 4893 | -6/Factory | Fabricated Biometal Medium Treads? 4993 | -6/Factory | Identified exit to Factory 5081 | -6/Factory | Found Launcher Loader 5163 | -6/Factory | Fabricated Lrg. Storage Unit (x1) 5251 | -6/Factory | Sucked down chute 5251 | -6/Factory | Entered Waste 5251 | -6/Waste | The area was eerily silent 5314 | -6/Waste | Discovered new exit (range 14) 5339 | -6/Waste | Entered Factory 5462 | -6/Factory | Discovered new exit (range 10) 5492 | -6/Factory | Discovered exit to Factory (range 15) 5496 | -6/Factory | Build established: Scavenger-Gladiator 5500 | -6/Factory | Identified exit to Lower Caves 5564 | -6/Factory | Lost 5 parts (1p2n2u) 5610 | -6/Factory | Entered another Factory area 5610 | -5/Factory | Evolved 2 slots: Weapon x2 5924 | -5/Factory | Fabricated X-67 Chaingunner? 5941 | -5/Factory | Fabricated Antigrav Array? 6135 | -5/Factory | Build established: Gladiator 6261 | -5/Factory | Spotted B-75 Beast 6743 | -5/Factory | Lost 3 parts (1p1n1u) 7465 | -5/Factory | Identified exit to Upper Caves 7575 | -5/Factory | Identified exit to Factory 7788 | -5/Factory | Cargo convoy interrupted 7852 | -5/Factory | Build established: Hacker-Gladiator 8010 | -5/Factory | Lost 3 parts (1p1n1u) 8180 | -5/Factory | Found Imp. Powered Armor 8184 | -5/Factory | Found Imp. Powered Armor 8187 | -5/Factory | Found Imp. Powered Armor 8189 | -5/Factory | Found Imp. Powered Armor 8377 | -5/Factory | Entered another Factory area 8377 | -4/Factory | Evolved 2 slots: Utility x2 8627 | -4/Factory | First assault squad dispatched 8793 | -4/Factory | System corruption reached 10% 8801 | -4/Factory | Released all parts (13) 8832 | -4/Factory | Lost 5 parts (5u) 8894 | -4/Factory | Discovered new exit (range 13) 8915 | -4/Factory | Entered Upper Caves 8940 | -4/Upper Caves | Core integrity fell below 50% 8970 | -4/Upper Caves | Lost 3 parts (1n1u1w) 9077 | -4/Upper Caves | Learned Research emergency access door positions 9144 | -4/Upper Caves | Discovered new exit (range 13) 9340 | -4/Upper Caves | Build established: Derelict-Mutant 9415 | -4/Upper Caves | Attracted the attention of an 0b10 checkpoint 9539 | -4/Upper Caves | Entered another Upper Caves area 9589 | -4/Upper Caves | Attracted the attention of an 0b10 base 9669 | -4/Upper Caves | Encountered a Warlord checkpoint 9677 | -4/Upper Caves | Discovered new exit (range 7) 9680 | -4/Upper Caves | Entered Zhirov 9680 | -4/Zhirov | Discovered new exit (range 4) 9690 | -4/Zhirov | Met Zhirov 9699 | -4/Zhirov | Learned location of Quarantine (-3) 9699 | -4/Zhirov | Learned location of Testing (-2) 9699 | -4/Zhirov | Learned location of Command (-1) 9709 | -4/Zhirov | Zhirov requested help retrieving the SGEMP Prototype 9718 | -4/Zhirov | Found Alien Artifact 9767 | -4/Zhirov | Found Alien Artifact 9890 | -4/Zhirov | Build established: Mutant 10031 | -4/Zhirov | Identified Transdimensional Reconstructor 10031 | -4/Zhirov | Warped through subspace 10056 | -4/Zhirov | Entered Proximity Caves 10181 | -3/Proximity Caves | Spotted B-86 Titan 10365 | -3/Proximity Caves | Attracted the attention of an 0b10 checkpoint 10456 | -3/Proximity Caves | Core integrity fell below 20% 10495 | -3/Proximity Caves | Discovered new exit (range 11) 10500 | -3/Proximity Caves | Entered Research 10500 | -3/Research | Evolved 2 slots: Utility x2 10606 | -3/Research | Spotted B-86 Titan 10678 | -3/Research | Spotted B-86 Titan 10876 | -3/Research | Build established: Hacker-Mutant 10888 | -3/Research | Identified Integrated Dissipator 10888 | -3/Research | Installed Integrated Dissipator, increased core heat dissipation (+20) 10895 | -3/Research | System corruption reached 10% 11053 | -3/Research | Found Prototype Launcher 11053 | -3/Research | Identified Com. Tesla Bomb Launcher 11125 | -3/Research | Lost 3 parts (1n1u1w) 11263 | -3/Research | Core integrity fell below 50% 11343 | -3/Research | Lost 6 parts (3n2u1w) 11368 | -3/Research | Discovered new exit (range 5) 11376 | -3/Research | Found Adv. Powered Armor 11378 | -3/Research | Entered Armory 11601 | -3/Armory | Found Unknown Launcher 11602 | -3/Armory | Identified Fusion Bomb Launcher 11607 | -3/Armory | Found Gamma Bomb Array 11610 | -3/Armory | Found Gamma Bomb Array 11646 | -3/Armory | Spotted B-86 Titan 11665 | -3/Armory | System corruption reached 30% 11698 | -3/Armory | Destroyed B-86 Titan 11704 | -3/Armory | Lost 3 allies 11715 | -3/Armory | Lost 3 parts (1p1u1w) 11729 | -3/Armory | Found Hvy. Reflective Plating 11730 | -3/Armory | Build established: Hacker-Tank 11787 | -3/Armory | Core integrity fell below 20% 11792 | -3/Armory | Core destroyed Last Messages --------------- 11781_ Slug penetrates Wall. 11782_ Power failure, Quantum Reactor shutdown. 11782_ Overheating: System interference. 11782_ Imp. System Guard temporarily disabled. 11782_ Enh. Nova Cannon temporarily disabled. 11782_ Hvy. Phase Cannon temporarily disabled. 11784_ H-77 Assassin heat damages Coil Gun, Unknown Leg, Imp. Phase Shifter. 11784_ Lgt. Antimatter Reactor melted. 11784_ Imp. Targeting Computer melted. 11784_ H-77 Assassin destroyed. 11787_ Overheating: Core damaged (-260). 11788_ System corrupted: Substantial component data lost. 11788_ System corrupted: Enh. Nova Cannon failed to cycle. 11790_ Overheating: Matter decay (-32). 11792_ Power failure, Quantum Reactor shutdown. 11792_ Overheating: Core damaged (-234). [Achievement: Back For More] Map ----- +----------------------------------------------------+ | ?????????????????????????????????????????????????? | | ?????????????????????????????????????????????????? | | ?????????????????????????????????????????????????? | | ?????????????????????????????????????????????????? | | ?????????????????????????????????????????????????? | | ?????????????????????????????????????????????????? | | ?????????????????????????????????????????????????? | | ?????????????????????????????????????????????????? | | ?????????????????????????????????????????????????? | | ?????????????????????????????????????????????????? | | ?????????????????????????????????????????????????? | | ?????????????????????????????????????????????????? | | ?????????????????????????????????????????????????? | | ?????????????????????????????????????????????????? | | ?????????????????????????????????????????????????? | | ???????????????????????????+#????????????????????? | | ??????????????????????????? #????????????????????? | | ??????????????????????????? #????????????????????? | | ????????????????????????###/###??????????????????? | | ????????????????????????# l #??????????????????? | | ????????????????????????# #??????????????????? | | ????????????????????????# #?####?????????????# | | ????????????????????????# #?# #???????###???# | | ????????????????????????# ### ######### ##### | | ????????????????????????# l # ] ^! %]## # | | ????????????????????????#@ # ] # # | | ?????????????????????# #%;##+## ] [ | | ?????????????????????+ %/i ^ # | | ?????????????????????# ##;## !# # | | ???????????????????? ; ?# ## !%# | | ??????????????????? #??# ## | | ?????????????????? ???# ## !%# | | ????????????????? ????#### # ! | | ????????????????###????????# # = " | | ???????????????????????????############### [%!# " | | ?????????????????????????????????????????##" !%# " | | ??????????????????????????????????????????## %## " | | ???????????????????????????????????????????#] %+ | | ???????????????????????????????????????????##### | | ???????????????????????????????????????????????# | | ???????????????????????????????????????????????? | | ????????????????????????????????????????????????## | | | | | | | | | | | | | | | | | +----------------------------------------------------+ Best States ------------- Heat Dissipation 104 Energy Generation 25 Energy Capacity 660 Matter Stores 300 Matter Capacity 550 Sight Range 22 Robot Scan Range 16 Terrain Scan Range 20 Terrain Scan Density 585 Jamming Range 14 Cloak Strength 4 Power Amplification 30 Corruption Containment 24 Corruption Block 15 Armor Coverage 1200 Resistance: KI 20 Resistance: TH 25 Resistance: EM 15 Power Shielding 66 Propulsion Shielding 66 Utility Shielding 66 Point Defense Rating 80 Melee Speed Boost 20 Evasion (%) 63 Targeting Accuracy 6 Melee Accuracy 24 Target Analysis 8 Recoil Reduction 4 Salvage Targeting 8 Offensive Hacking 36 Defensive Hacking 10 Authchip Count 2 Item Schematics ----------------- Lrg. Storage Unit | -10/Materials | Hacked Grenade Launcher | -10/Materials | Hacked Assault Drone Bay | -4/Zhirov | Free Exp. Heat Sink | -4/Zhirov | Free Exp. Optical Array | -4/Zhirov | Free Imp. Arc Thrower | -4/Zhirov | Free Robot Schematics ------------------ None Fabricated ------------ Biometal Medium Treads | x2 | -6/Factory | Preloaded Lrg. Storage Unit | x1 | -6/Factory X-67 Chaingunner | x2 | -5/Factory | Preloaded Antigrav Array | x1 | -5/Factory | Preloaded Alien Tech Used ----------------- Transdimensional Reconstructor Integrated Dissipator Achievements -------------- Back For More Challenges ------------ None Game ------ Seed BladeFortressSubcomponent Manual? 0 Play Time 03:30:32 Cumulative 179.8 hours Start 2024.04.19 @ 04:29:20 End 2024.04.19 @ 08:01:43 Sessions 1 Manual Loads 0 Difficulty Rogue Special Mode None Game No. 51 Rogue 51 Adventurer 0 Explorer 0 Win Type - Total 13 Types 7/2/2/1/1/0/0/0/0 Lore% 47 Gallery% 70 Achievement% 63 Wizard Run 0 Options --------- Layout 1 ASCII 0 Keyboard 0 Movement Numpad Keybinds 0 Fullscreen 1 Font 24/Smallcaps Map View 50x35 Zoom Use 0% Tactical HUD 1 Map Filters NONE Filters NONE Steam 1 RUN: e5c458d4-84e4-42b0-a093-ba3a85079bd6